[Event "Titled Tuesday Blitz November 29 Early 2022"]
[White "Sailer, Mike"]
[Black "Sukandar, Irine Kharisma"]
[WhiteFideId "2012901"]
[BlackFideId "7101937"]
[WhiteElo "2109"]
[BlackElo "2301"]
[Result "0-1"]
[Round "03"]
[TimeControl "180+1"]
[Date "2022.11.30"]
[WhiteClock "0:00:03"]
[BlackClock "0:00:45"]

1. Nf3 {[%clk 0:03:00]}  c5 {[%clk 0:02:57]} 2. c4 {[%clk 0:03:00]}  Nf6 {[%clk 0:02:57]} 3. g3 {[%clk 0:03:01]}  g6 {[%clk 0:02:57]} 4. Bg2 {[%clk 0:03:01]}  Bg7 {[%clk 0:02:57]} 5. O-O {[%clk 0:03:02]}  Nc6 {[%clk 0:02:56]} 6. Nc3 {[%clk 0:03:02]}  h5 {[%clk 0:02:50]} 7. h4 {[%clk 0:03:01]}  d6 {[%clk 0:02:48]} 8. d4 {[%clk 0:02:56]}  cxd4 {[%clk 0:02:47]} 9. Nxd4 {[%clk 0:02:57]}  Bd7 {[%clk 0:02:48]} 10. Bg5 {[%clk 0:02:52]}  O-O {[%clk 0:02:47]} 11. e4 {[%clk 0:02:42]}  Rc8 {[%clk 0:02:46]} 12. Rc1 {[%clk 0:02:35]}  Nxe4 {[%clk 0:01:54]} 13. Nxc6 {[%clk 0:01:59]}  Nxc3 {[%clk 0:01:52]} 14. Nxe7+ {[%clk 0:01:59]}  Qxe7 {[%clk 0:01:40]} 15. Bxe7 {[%clk 0:01:54]}  Nxd1 {[%clk 0:01:40]} 16. Bxf8 {[%clk 0:01:44]}  Kxf8 {[%clk 0:01:32]} 17. Rcxd1 {[%clk 0:01:41]}  Bxb2 {[%clk 0:01:27]} 18. Rxd6 {[%clk 0:01:32]}  Bf5 {[%clk 0:01:24]} 19. Bxb7 {[%clk 0:01:11]}  Rxc4 {[%clk 0:01:24]} 20. Rd8+ {[%clk 0:01:00]}  Kg7 {[%clk 0:01:20]} 21. Ra8 {[%clk 0:00:40]}  Bd4 {[%clk 0:01:19]} 22. Bd5 {[%clk 0:00:39]}  Rc3 {[%clk 0:01:13]} 23. Kg2 {[%clk 0:00:34]}  Rc5 {[%clk 0:01:10]} 24. Rd8 {[%clk 0:00:27]}  Bf6 {[%clk 0:01:04]} 25. Rd6 {[%clk 0:00:12]}  Rxd5 {[%clk 0:01:04]} 26. Rxd5 {[%clk 0:00:12]}  Be4+ {[%clk 0:01:04]} 27. f3 {[%clk 0:00:13]}  Bxd5 {[%clk 0:01:05]} 28. a3 {[%clk 0:00:10]}  Bb2 {[%clk 0:00:50]} 29. a4 {[%clk 0:00:09]}  a5 {[%clk 0:00:49]} 30. Rb1 {[%clk 0:00:07]}  Bc3 {[%clk 0:00:47]} 31. Rc1 {[%clk 0:00:04]}  Bb4 {[%clk 0:00:46]} 32. Rd1 {[%clk 0:00:04]}  Bb3 {[%clk 0:00:45]} 33. Rd7 {[%clk 0:00:03]}  Bxa4 {[%clk 0:00:45]} 34. g4 {[%clk 0:00:03]}  Bxd7 {[%clk 0:00:45]} 0-1


[Site "https://www.chess.com"]

[Event "Titled Tuesday Blitz November 29 Early 2022"]
[White "Salinas Herrera, Pablo"]
[Black "Li, Hui"]
[WhiteFideId "3407128"]
[BlackFideId "15400310"]
[WhiteElo "2557"]
[BlackElo "1954"]
[Result "1-0"]
[Round "03"]
[TimeControl "180+1"]
[Date "2022.11.30"]
[WhiteClock "0:00:34"]
[BlackClock "0:00:02"]

1. d4 {[%clk 0:03:00]}  Nf6 {[%clk 0:00:56]} 2. Bf4 {[%clk 0:02:53]}  d5 {[%clk 0:00:45]} 3. e3 {[%clk 0:02:53]}  c5 {[%clk 0:00:39]} 4. Nf3 {[%clk 0:02:53]}  Nc6 {[%clk 0:00:38]} 5. Nbd2 {[%clk 0:02:53]}  cxd4 {[%clk 0:00:38]} 6. exd4 {[%clk 0:02:53]}  Qb6 {[%clk 0:00:38]} 7. Nb3 {[%clk 0:02:53]}  Bg4 {[%clk 0:00:34]} 8. c3 {[%clk 0:02:53]}  e6 {[%clk 0:00:34]} 9. Bd3 {[%clk 0:02:53]}  Qd8 {[%clk 0:00:33]} 10. O-O {[%clk 0:02:52]}  Bd6 {[%clk 0:00:33]} 11. Be3 {[%clk 0:02:49]}  O-O {[%clk 0:00:32]} 12. Re1 {[%clk 0:02:49]}  Bh5 {[%clk 0:00:32]} 13. Nbd2 {[%clk 0:02:49]}  Rc8 {[%clk 0:00:31]} 14. a4 {[%clk 0:02:48]}  a6 {[%clk 0:00:28]} 15. Bg5 {[%clk 0:02:46]}  Bg6 {[%clk 0:00:28]} 16. Bxg6 {[%clk 0:02:45]}  hxg6 {[%clk 0:00:28]} 17. Ne5 {[%clk 0:02:44]}  Qc7 {[%clk 0:00:26]} 18. Ndf3 {[%clk 0:02:36]}  Ne4 {[%clk 0:00:24]} 19. Bh4 {[%clk 0:02:29]}  Rfe8 {[%clk 0:00:18]} 20. Nd3 {[%clk 0:02:17]}  b5 {[%clk 0:00:13]} 21. axb5 {[%clk 0:02:16]}  axb5 {[%clk 0:00:14]} 22. Rc1 {[%clk 0:02:12]}  Ne7 {[%clk 0:00:14]} 23. Bg3 {[%clk 0:02:06]}  Nf5 {[%clk 0:00:13]} 24. Bxd6 {[%clk 0:02:06]}  Nfxd6 {[%clk 0:00:13]} 25. Nfe5 {[%clk 0:02:03]}  Nc4 {[%clk 0:00:13]} 26. Re2 {[%clk 0:01:59]}  Nxe5 {[%clk 0:00:13]} 27. dxe5 {[%clk 0:01:58]}  Nc5 {[%clk 0:00:13]} 28. Nb4 {[%clk 0:01:58]}  Ne4 {[%clk 0:00:12]} 29. Qe1 {[%clk 0:01:55]}  Nc5 {[%clk 0:00:12]} 30. Rd1 {[%clk 0:01:54]}  Ne4 {[%clk 0:00:11]} 31. f3 {[%clk 0:01:54]}  Nc5 {[%clk 0:00:09]} 32. h4 {[%clk 0:01:53]}  Ra8 {[%clk 0:00:08]} 33. Kh2 {[%clk 0:01:49]}  Nd7 {[%clk 0:00:08]} 34. Qg3 {[%clk 0:01:49]}  Nb6 {[%clk 0:00:07]} 35. Nc2 {[%clk 0:01:41]}  Nc4 {[%clk 0:00:07]} 36. Nd4 {[%clk 0:01:42]}  b4 {[%clk 0:00:07]} 37. cxb4 {[%clk 0:01:40]}  Qb6 {[%clk 0:00:07]} 38. b5 {[%clk 0:01:40]}  Rec8 {[%clk 0:00:07]} 39. Qg5 {[%clk 0:01:29]}  Ra2 {[%clk 0:00:07]} 40. Nc6 {[%clk 0:01:21]}  Rxc6 {[%clk 0:00:04]} 41. bxc6 {[%clk 0:01:20]}  Qxc6 {[%clk 0:00:05]} 42. Rc1 {[%clk 0:01:18]}  Qb5 {[%clk 0:00:04]} 43. h5 {[%clk 0:01:13]}  Rxb2 {[%clk 0:00:03]} 44. Rxb2 {[%clk 0:01:12]}  Qxb2 {[%clk 0:00:04]} 45. hxg6 {[%clk 0:01:12]}  Qxe5+ {[%clk 0:00:03]} 46. Qxe5 {[%clk 0:01:12]}  Nxe5 {[%clk 0:00:04]} 47. gxf7+ {[%clk 0:01:12]}  Kxf7 {[%clk 0:00:05]} 48. Kg3 {[%clk 0:01:09]}  Kf6 {[%clk 0:00:05]} 49. Rc8 {[%clk 0:01:07]}  Ng6 {[%clk 0:00:04]} 50. Kf2 {[%clk 0:01:06]}  Ne5 {[%clk 0:00:04]} 51. Ke3 {[%clk 0:01:05]}  Nf7 {[%clk 0:00:04]} 52. Ra8 {[%clk 0:01:01]}  Nd6 {[%clk 0:00:04]} 53. Ra6 {[%clk 0:01:00]}  Nf5+ {[%clk 0:00:04]} 54. Kf2 {[%clk 0:00:59]}  Nd4 {[%clk 0:00:03]} 55. g4 {[%clk 0:00:59]}  g6 {[%clk 0:00:03]} 56. Ke3 {[%clk 0:00:58]}  Nc2+ {[%clk 0:00:03]} 57. Kf4 {[%clk 0:00:58]}  g5+ {[%clk 0:00:02]} 58. Kg3 {[%clk 0:00:58]}  Nd4 {[%clk 0:00:03]} 59. Ra8 {[%clk 0:00:57]}  Ne2+ {[%clk 0:00:03]} 60. Kf2 {[%clk 0:00:57]}  Nf4 {[%clk 0:00:04]} 61. Ke3 {[%clk 0:00:57]}  Ng2+ {[%clk 0:00:04]} 62. Kd4 {[%clk 0:00:56]}  Ne1 {[%clk 0:00:04]} 63. Ke3 {[%clk 0:00:51]}  Ng2+ {[%clk 0:00:04]} 64. Kd2 {[%clk 0:00:51]}  Nf4 {[%clk 0:00:04]} 65. Rf8+ {[%clk 0:00:51]}  Kg7 {[%clk 0:00:03]} 66. Ra8 {[%clk 0:00:49]}  Kf6 {[%clk 0:00:03]} 67. Ra2 {[%clk 0:00:49]}  Ng2 {[%clk 0:00:03]} 68. Kd3 {[%clk 0:00:46]}  Nf4+ {[%clk 0:00:04]} 69. Kd4 {[%clk 0:00:46]}  e5+ {[%clk 0:00:03]} 70. Kc5 {[%clk 0:00:46]}  e4 {[%clk 0:00:02]} 71. fxe4 {[%clk 0:00:45]}  dxe4 {[%clk 0:00:03]} 72. Kd4 {[%clk 0:00:46]}  e3 {[%clk 0:00:02]} 73. Kxe3 {[%clk 0:00:45]}  Ke5 {[%clk 0:00:02]} 74. Ra5+ {[%clk 0:00:45]}  Kf6 {[%clk 0:00:02]} 75. Ke4 {[%clk 0:00:45]}  Ne2 {[%clk 0:00:02]} 76. Ra6+ {[%clk 0:00:44]}  Kg7 {[%clk 0:00:02]} 77. Kf5 {[%clk 0:00:44]}  Nd4+ {[%clk 0:00:02]} 78. Kxg5 {[%clk 0:00:45]}  Nf3+ {[%clk 0:00:03]} 79. Kf4 {[%clk 0:00:44]}  Nd4 {[%clk 0:00:02]} 80. g5 {[%clk 0:00:43]}  Ne2+ {[%clk 0:00:03]} 81. Kg4 {[%clk 0:00:43]}  Nd4 {[%clk 0:00:03]} 82. Kh5 {[%clk 0:00:44]}  Ne2 {[%clk 0:00:02]} 83. Ra7+ {[%clk 0:00:44]}  Kg8 {[%clk 0:00:03]} 84. Kh6 {[%clk 0:00:44]}  Nd4 {[%clk 0:00:02]} 85. g6 {[%clk 0:00:43]}  Nf5+ {[%clk 0:00:02]} 86. Kg5 {[%clk 0:00:43]}  Nd4 {[%clk 0:00:02]} 87. Re7 {[%clk 0:00:41]}  Kf8 {[%clk 0:00:02]} 88. g7+ {[%clk 0:00:38]}  Kxe7 {[%clk 0:00:01]} 89. g8=Q {[%clk 0:00:38]}  Ne6+ {[%clk 0:00:02]} 90. Kf5 {[%clk 0:00:38]}  Nd4+ {[%clk 0:00:02]} 91. Ke4 {[%clk 0:00:37]}  Ne6 {[%clk 0:00:02]} 92. Ke5 {[%clk 0:00:37]}  Nc5 {[%clk 0:00:02]} 93. Qh7+ {[%clk 0:00:35]}  Kd8 {[%clk 0:00:02]} 94. Kd5 {[%clk 0:00:34]}  Nd3 {[%clk 0:00:02]} 95. Qxd3 {[%clk 0:00:34]} 1-0


[Site "https://www.chess.com"]

[Event "Titled Tuesday Blitz November 29 Early 2022"]
[White "Sargissyan, Sargis"]
[Black "Kukula, Pawel"]
[WhiteFideId "13303210"]
[BlackFideId "1115081"]
[WhiteElo "2109"]
[BlackElo "2046"]
[Result "0-1"]
[Round "03"]
[TimeControl "180+1"]
[Date "2022.11.30"]
[WhiteClock "0:00:01"]
[BlackClock "0:00:02"]

1. e4 {[%clk 0:03:00]}  c6 {[%clk 0:02:58]} 2. Nc3 {[%clk 0:02:59]}  d5 {[%clk 0:02:57]} 3. Nf3 {[%clk 0:02:59]}  Bg4 {[%clk 0:02:56]} 4. h3 {[%clk 0:03:00]}  Bxf3 {[%clk 0:02:54]} 5. Qxf3 {[%clk 0:03:01]}  e6 {[%clk 0:02:55]} 6. Be2 {[%clk 0:03:00]}  Nd7 {[%clk 0:02:53]} 7. O-O {[%clk 0:02:58]}  Ngf6 {[%clk 0:02:53]} 8. d4 {[%clk 0:02:56]}  dxe4 {[%clk 0:02:53]} 9. Nxe4 {[%clk 0:02:56]}  Nxe4 {[%clk 0:02:54]} 10. Qxe4 {[%clk 0:02:57]}  Nf6 {[%clk 0:02:55]} 11. Qh4 {[%clk 0:02:53]}  Be7 {[%clk 0:02:55]} 12. c3 {[%clk 0:02:50]}  O-O {[%clk 0:02:52]} 13. Bd3 {[%clk 0:02:49]}  Re8 {[%clk 0:02:34]} 14. Bg5 {[%clk 0:02:31]}  h6 {[%clk 0:02:33]} 15. Bxf6 {[%clk 0:02:22]}  Bxf6 {[%clk 0:02:32]} 16. Qe4 {[%clk 0:02:22]}  g6 {[%clk 0:02:03]} 17. Rfe1 {[%clk 0:01:46]}  Qd5 {[%clk 0:01:57]} 18. Qf4 {[%clk 0:01:41]}  Kg7 {[%clk 0:01:45]} 19. Be4 {[%clk 0:01:36]}  Qd7 {[%clk 0:01:40]} 20. Rad1 {[%clk 0:01:28]}  Rad8 {[%clk 0:01:36]} 21. Rd3 {[%clk 0:01:25]}  Qd6 {[%clk 0:01:18]} 22. Qc1 {[%clk 0:01:12]}  Bg5 {[%clk 0:00:42]} 23. Qc2 {[%clk 0:01:09]}  Re7 {[%clk 0:00:31]} 24. Rg3 {[%clk 0:01:06]}  e5 {[%clk 0:00:23]} 25. dxe5 {[%clk 0:00:48]}  Qxe5 {[%clk 0:00:20]} 26. Re2 {[%clk 0:00:38]}  Qa5 {[%clk 0:00:10]} 27. Bd3 {[%clk 0:00:27]}  Rxe2 {[%clk 0:00:09]} 28. Qxe2 {[%clk 0:00:26]}  Qxa2 {[%clk 0:00:08]} 29. h4 {[%clk 0:00:25]}  Bxh4 {[%clk 0:00:03]} 30. Rf3 {[%clk 0:00:15]}  Bf6 {[%clk 0:00:03]} 31. g3 {[%clk 0:00:07]}  Qd5 {[%clk 0:00:03]} 32. Bc4 {[%clk 0:00:04]}  Qd2 {[%clk 0:00:03]} 33. Qe4 {[%clk 0:00:03]}  Qd1+ {[%clk 0:00:01]} 34. Kg2 {[%clk 0:00:03]}  Qd6 {[%clk 0:00:02]} 35. Qe3 {[%clk 0:00:03]}  a6 {[%clk 0:00:02]} 36. Bb3 {[%clk 0:00:02]}  b5 {[%clk 0:00:02]} 37. Qe4 {[%clk 0:00:02]}  c5 {[%clk 0:00:02]} 38. Bc2 {[%clk 0:00:03]}  c4 {[%clk 0:00:02]} 39. Qb7 {[%clk 0:00:03]}  Rd7 {[%clk 0:00:02]} 40. Qc8 {[%clk 0:00:02]}  h5 {[%clk 0:00:01]} 41. Re3 {[%clk 0:00:02]}  Rc7 {[%clk 0:00:01]} 42. Qe8 {[%clk 0:00:01]}  Qc6+ {[%clk 0:00:02]} 0-1


[Site "https://www.chess.com"]

[Event "Titled Tuesday Blitz November 29 Early 2022"]
[White "Schut, Han"]
[Black "Mogranzini, Roberto"]
[WhiteFideId "1005561"]
[BlackFideId "810894"]
[WhiteElo "2024"]
[BlackElo "2469"]
[Result "0-1"]
[Round "03"]
[TimeControl "180+1"]
[Date "2022.11.30"]
[WhiteClock "0:00:04"]
[BlackClock "0:00:58"]

1. e4 {[%clk 0:03:00]}  c5 {[%clk 0:02:59]} 2. Nf3 {[%clk 0:03:01]}  Nc6 {[%clk 0:03:00]} 3. d4 {[%clk 0:03:01]}  cxd4 {[%clk 0:03:00]} 4. Nxd4 {[%clk 0:03:02]}  Nf6 {[%clk 0:03:01]} 5. Nc3 {[%clk 0:03:02]}  h5 {[%clk 0:03:01]} 6. Be2 {[%clk 0:02:59]}  g6 {[%clk 0:02:55]} 7. Be3 {[%clk 0:02:58]}  Bg7 {[%clk 0:02:56]} 8. f3 {[%clk 0:02:57]}  d6 {[%clk 0:02:55]} 9. Qd2 {[%clk 0:02:58]}  Bd7 {[%clk 0:02:55]} 10. O-O {[%clk 0:02:50]}  Rc8 {[%clk 0:02:55]} 11. Rad1 {[%clk 0:02:43]}  Ne5 {[%clk 0:02:54]} 12. f4 {[%clk 0:02:25]}  Neg4 {[%clk 0:02:53]} 13. Nf3 {[%clk 0:02:07]}  Nxe3 {[%clk 0:02:51]} 14. Qxe3 {[%clk 0:02:08]}  Ng4 {[%clk 0:02:36]} 15. Qxa7 {[%clk 0:01:56]}  Ra8 {[%clk 0:02:37]} 16. Qxb7 {[%clk 0:01:49]}  O-O {[%clk 0:02:05]} 17. e5 {[%clk 0:01:15]}  Ne3 {[%clk 0:02:01]} 18. exd6 {[%clk 0:01:05]}  Nxd1 {[%clk 0:01:56]} 19. Rxd1 {[%clk 0:01:04]}  Rb8 {[%clk 0:01:52]} 20. dxe7 {[%clk 0:00:55]}  Qxe7 {[%clk 0:01:51]} 21. Qxd7 {[%clk 0:00:54]}  Qe3+ {[%clk 0:01:50]} 22. Kf1 {[%clk 0:00:51]}  Rxb2 {[%clk 0:01:33]} 23. Nd5 {[%clk 0:00:45]}  Qc5 {[%clk 0:01:28]} 24. Bd3 {[%clk 0:00:13]}  Rxa2 {[%clk 0:01:14]} 25. Ne7+ {[%clk 0:00:13]}  Kh8 {[%clk 0:01:11]} 26. Bxg6 {[%clk 0:00:11]}  Ra7 {[%clk 0:01:02]} 27. Qd5 {[%clk 0:00:05]}  Qxd5 {[%clk 0:00:59]} 28. Nxd5 {[%clk 0:00:04]}  fxg6 {[%clk 0:00:59]} 29. Ne5 {[%clk 0:00:04]}  Bxe5 {[%clk 0:00:58]} 0-1


[Site "https://www.chess.com"]

[Event "Titled Tuesday Blitz November 29 Early 2022"]
[White "Sethuraman, S.P."]
[Black "Yeremyan, Alen"]
[WhiteFideId "5021596"]
[BlackFideId "13308998"]
[WhiteElo "2545"]
[BlackElo "2159"]
[Result "1-0"]
[Round "03"]
[TimeControl "180+1"]
[Date "2022.11.30"]
[WhiteClock "0:01:04"]
[BlackClock "0:00:47"]

1. e4 {[%clk 0:03:00]}  c5 {[%clk 0:02:52]} 2. Nf3 {[%clk 0:03:00]}  Nc6 {[%clk 0:02:53]} 3. d4 {[%clk 0:03:00]}  cxd4 {[%clk 0:02:53]} 4. Nxd4 {[%clk 0:03:00]}  Nf6 {[%clk 0:02:54]} 5. Nc3 {[%clk 0:03:01]}  e5 {[%clk 0:02:55]} 6. Nde2 {[%clk 0:03:01]}  d6 {[%clk 0:02:54]} 7. Ng3 {[%clk 0:02:59]}  Be7 {[%clk 0:02:54]} 8. Bg5 {[%clk 0:02:52]}  Be6 {[%clk 0:02:54]} 9. Qd2 {[%clk 0:02:47]}  h6 {[%clk 0:02:52]} 10. Bxf6 {[%clk 0:02:43]}  Bxf6 {[%clk 0:02:53]} 11. Nh5 {[%clk 0:02:42]}  O-O {[%clk 0:02:47]} 12. Nxf6+ {[%clk 0:02:40]}  Qxf6 {[%clk 0:02:47]} 13. O-O-O {[%clk 0:02:35]}  a6 {[%clk 0:02:46]} 14. Kb1 {[%clk 0:02:28]}  Rac8 {[%clk 0:02:42]} 15. Bd3 {[%clk 0:02:26]}  b5 {[%clk 0:02:41]} 16. Rhf1 {[%clk 0:02:22]}  Qf4 {[%clk 0:02:34]} 17. Qxf4 {[%clk 0:02:15]}  exf4 {[%clk 0:02:34]} 18. f3 {[%clk 0:02:16]}  Ne5 {[%clk 0:02:31]} 19. Ne2 {[%clk 0:02:13]}  g5 {[%clk 0:02:28]} 20. Nd4 {[%clk 0:02:06]}  Rc7 {[%clk 0:02:14]} 21. Be2 {[%clk 0:02:06]}  Rfc8 {[%clk 0:02:12]} 22. c3 {[%clk 0:02:06]}  Rd8 {[%clk 0:02:07]} 23. g3 {[%clk 0:01:59]}  Ng6 {[%clk 0:02:06]} 24. Rd2 {[%clk 0:01:55]}  Kf8 {[%clk 0:02:06]} 25. Bd1 {[%clk 0:01:53]}  d5 {[%clk 0:01:59]} 26. Bb3 {[%clk 0:01:49]}  Ke8 {[%clk 0:01:41]} 27. exd5 {[%clk 0:01:27]}  Bxd5 {[%clk 0:01:36]} 28. Nxb5 {[%clk 0:01:27]}  axb5 {[%clk 0:01:23]} 29. Rxd5 {[%clk 0:01:27]}  Rxd5 {[%clk 0:01:21]} 30. Bxd5 {[%clk 0:01:27]}  f5 {[%clk 0:01:22]} 31. Be6 {[%clk 0:01:25]}  Rc5 {[%clk 0:01:17]} 32. Re1 {[%clk 0:01:17]}  Kf8 {[%clk 0:01:16]} 33. Kc2 {[%clk 0:01:14]}  fxg3 {[%clk 0:01:13]} 34. hxg3 {[%clk 0:01:14]}  Kg7 {[%clk 0:00:45]} 35. b4 {[%clk 0:01:12]}  Re5 {[%clk 0:00:45]} 36. Rxe5 {[%clk 0:01:09]}  Nxe5 {[%clk 0:00:46]} 37. Bxf5 {[%clk 0:01:09]}  Nxf3 {[%clk 0:00:47]} 38. Bd3 {[%clk 0:01:05]}  Ne5 {[%clk 0:00:48]} 39. Bxb5 {[%clk 0:01:05]}  h5 {[%clk 0:00:47]} 40. a4 {[%clk 0:01:04]}  h4 {[%clk 0:00:46]} 41. gxh4 {[%clk 0:01:04]}  gxh4 {[%clk 0:00:47]} 42. Bf1 {[%clk 0:01:04]} 1-0


[Site "https://www.chess.com"]

[Event "Titled Tuesday Blitz November 29 Early 2022"]
[White "Shuvalov, Evgenij"]
[Black "Palacio,Igor Da Paz"]
[WhiteFideId "4187237"]
[BlackFideId "2121140"]
[WhiteElo "2049"]
[BlackElo "2126"]
[Result "1-0"]
[Round "03"]
[TimeControl "180+1"]
[Date "2022.11.30"]
[WhiteClock "0:01:08"]
[BlackClock "0:00:01"]

1. d4 {[%clk 0:03:00]}  Nf6 {[%clk 0:02:59]} 2. c4 {[%clk 0:03:00]}  g6 {[%clk 0:02:58]} 3. Nc3 {[%clk 0:03:00]}  Bg7 {[%clk 0:02:58]} 4. e4 {[%clk 0:03:00]}  d6 {[%clk 0:02:58]} 5. Nf3 {[%clk 0:03:00]}  O-O {[%clk 0:02:58]} 6. Be2 {[%clk 0:03:00]}  e5 {[%clk 0:02:57]} 7. O-O {[%clk 0:03:00]}  Nbd7 {[%clk 0:02:57]} 8. Be3 {[%clk 0:02:59]}  c6 {[%clk 0:02:56]} 9. d5 {[%clk 0:02:58]}  c5 {[%clk 0:02:52]} 10. Nd2 {[%clk 0:02:57]}  Ne8 {[%clk 0:02:50]} 11. g4 {[%clk 0:02:56]}  Qh4 {[%clk 0:02:37]} 12. g5 {[%clk 0:02:39]}  h6 {[%clk 0:02:11]} 13. Nf3 {[%clk 0:02:37]}  Qh3 {[%clk 0:02:00]} 14. Kh1 {[%clk 0:02:36]}  f6 {[%clk 0:01:25]} 15. gxf6 {[%clk 0:02:31]}  Ndxf6 {[%clk 0:01:20]} 16. Rg1 {[%clk 0:02:29]}  Ng4 {[%clk 0:01:14]} 17. Rg3 {[%clk 0:02:21]}  Nxe3 {[%clk 0:01:13]} 18. fxe3 {[%clk 0:02:17]}  Qh5 {[%clk 0:00:33]} 19. Ng1 {[%clk 0:02:04]}  Qh4 {[%clk 0:00:28]} 20. Rxg6 {[%clk 0:02:00]}  Kh7 {[%clk 0:00:22]} 21. Rg3 {[%clk 0:01:56]}  Rf2 {[%clk 0:00:20]} 22. Nf3 {[%clk 0:01:48]}  Qh5 {[%clk 0:00:16]} 23. Qg1 {[%clk 0:01:46]}  Rxe2 {[%clk 0:00:07]} 24. Nxe2 {[%clk 0:01:47]}  Bd7 {[%clk 0:00:05]} 25. Rf1 {[%clk 0:01:42]}  Bf6 {[%clk 0:00:04]} 26. Nc3 {[%clk 0:01:35]}  Ng7 {[%clk 0:00:03]} 27. Nb5 {[%clk 0:01:16]}  Bh3 {[%clk 0:00:01]} 28. Rf2 {[%clk 0:01:11]}  Rf8 {[%clk 0:00:01]} 29. Nxd6 {[%clk 0:01:09]}  Bg5 {[%clk 0:00:01]} 30. Nxg5+ {[%clk 0:01:08]} 1-0


[Site "https://www.chess.com"]

[Event "Titled Tuesday Blitz November 29 Early 2022"]
[White "Silva, Miguel Antonio Neto"]
[Black "Antonio, Jorge Carlos"]
[WhiteFideId "1911929"]
[BlackFideId "113190"]
[WhiteElo "2223"]
[BlackElo "2247"]
[Result "1-0"]
[Round "03"]
[TimeControl "180+1"]
[Date "2022.11.30"]
[WhiteClock "0:01:09"]
[BlackClock "0:01:02"]

1. Nf3 {[%clk 0:03:00]}  d5 {[%clk 0:02:54]} 2. c4 {[%clk 0:03:00]}  c6 {[%clk 0:02:53]} 3. d4 {[%clk 0:03:00]}  dxc4 {[%clk 0:02:52]} 4. e3 {[%clk 0:02:58]}  b5 {[%clk 0:02:52]} 5. a4 {[%clk 0:02:57]}  a6 {[%clk 0:02:51]} 6. axb5 {[%clk 0:02:54]}  cxb5 {[%clk 0:02:51]} 7. b3 {[%clk 0:02:54]}  Qc7 {[%clk 0:02:34]} 8. bxc4 {[%clk 0:02:51]}  bxc4 {[%clk 0:02:34]} 9. Qa4+ {[%clk 0:02:50]}  Bd7 {[%clk 0:02:32]} 10. Qxc4 {[%clk 0:02:50]}  Qxc4 {[%clk 0:02:27]} 11. Bxc4 {[%clk 0:02:49]}  Bc6 {[%clk 0:02:22]} 12. Ne5 {[%clk 0:02:44]}  e6 {[%clk 0:02:11]} 13. Nxc6 {[%clk 0:02:44]}  Nxc6 {[%clk 0:02:10]} 14. Rxa6 {[%clk 0:02:43]}  Rxa6 {[%clk 0:02:09]} 15. Bxa6 {[%clk 0:02:43]}  Bb4+ {[%clk 0:02:03]} 16. Bd2 {[%clk 0:02:43]}  Bxd2+ {[%clk 0:02:03]} 17. Nxd2 {[%clk 0:02:44]}  Nge7 {[%clk 0:01:59]} 18. Ke2 {[%clk 0:02:43]}  O-O {[%clk 0:01:59]} 19. Rc1 {[%clk 0:02:39]}  Nb4 {[%clk 0:01:52]} 20. Bd3 {[%clk 0:02:34]}  Nxd3 {[%clk 0:01:51]} 21. Kxd3 {[%clk 0:02:34]}  h6 {[%clk 0:01:51]} 22. e4 {[%clk 0:02:25]}  Ra8 {[%clk 0:01:50]} 23. Rc7 {[%clk 0:02:16]}  Ng6 {[%clk 0:01:48]} 24. g3 {[%clk 0:02:15]}  h5 {[%clk 0:01:41]} 25. Nf3 {[%clk 0:02:11]}  Ra3+ {[%clk 0:01:40]} 26. Rc3 {[%clk 0:02:10]}  Ra2 {[%clk 0:01:39]} 27. Rc8+ {[%clk 0:02:06]}  Kh7 {[%clk 0:01:39]} 28. Ng5+ {[%clk 0:02:06]}  Kh6 {[%clk 0:01:37]} 29. Nxf7+ {[%clk 0:02:06]}  Kh7 {[%clk 0:01:35]} 30. Rc2 {[%clk 0:01:50]}  Ra3+ {[%clk 0:01:32]} 31. Ke2 {[%clk 0:01:49]}  h4 {[%clk 0:01:30]} 32. Rd2 {[%clk 0:01:44]}  h3 {[%clk 0:01:13]} 33. Ng5+ {[%clk 0:01:44]}  Kh6 {[%clk 0:01:13]} 34. Nxh3 {[%clk 0:01:44]}  Ra4 {[%clk 0:01:12]} 35. Nf4 {[%clk 0:01:40]}  Nxf4+ {[%clk 0:01:11]} 36. gxf4 {[%clk 0:01:40]}  Kh5 {[%clk 0:01:12]} 37. f3 {[%clk 0:01:36]}  Kh4 {[%clk 0:01:11]} 38. d5 {[%clk 0:01:36]}  exd5 {[%clk 0:01:10]} 39. exd5 {[%clk 0:01:29]}  Rxf4 {[%clk 0:01:08]} 40. d6 {[%clk 0:01:29]}  Rf8 {[%clk 0:01:08]} 41. d7 {[%clk 0:01:29]}  Rd8 {[%clk 0:01:08]} 42. Rd5 {[%clk 0:01:28]}  g5 {[%clk 0:01:06]} 43. Rd6 {[%clk 0:01:22]}  g4 {[%clk 0:01:05]} 44. Rd4 {[%clk 0:01:17]}  Kh3 {[%clk 0:01:03]} 45. fxg4 {[%clk 0:01:15]}  Kxh2 {[%clk 0:01:03]} 46. Kf3 {[%clk 0:01:14]}  Kh3 {[%clk 0:01:03]} 47. Rd5 {[%clk 0:01:10]}  Kh4 {[%clk 0:01:02]} 48. Rh5# {[%clk 0:01:09]} 1-0


[Site "https://www.chess.com"]